[Event "Early-Titled-Tuesday-Blitz-July-09-2024"]
[Site "Chess.com"]
[Date "2024.07.09"]
[Round "9"]
[White "Smiechu"]
[Black "kripri"]
[Result "1-0"]
[WhiteElo "2441"]
[BlackElo "2315"]
[TimeControl "180+1"]
[EndTime "9:41:16 PDT"]
[Termination "Smiechu won by checkmate"]

1. e4 {[%clk 0:03:00.9]} 1... c6 {[%clk 0:02:52.5]} 2. d4 {[%clk 0:03:00]} 2...
d5 {[%clk 0:02:53.4]} 3. f3 {[%clk 0:02:59.7]} 3... dxe4 {[%clk 0:02:52.5]} 4.
fxe4 {[%clk 0:02:59.6]} 4... e5 {[%clk 0:02:53.2]} 5. Nf3 {[%clk 0:02:59.3]}
5... Bg4 {[%clk 0:02:53.8]} 6. Bc4 {[%clk 0:02:58.7]} 6... Nd7 {[%clk
0:02:49.7]} 7. O-O {[%clk 0:02:57.5]} 7... Ngf6 {[%clk 0:02:45.1]} 8. dxe5
{[%clk 0:02:47.5]} 8... Qb6+ {[%clk 0:02:38.7]} 9. Kh1 {[%clk 0:02:45.9]} 9...
Nxe5 {[%clk 0:02:38.6]} 10. Be2 {[%clk 0:02:38.6]} 10... Nxf3 {[%clk 0:02:36.5]}
11. Bxf3 {[%clk 0:02:38.3]} 11... Bxf3 {[%clk 0:02:35.8]} 12. Qxf3 {[%clk
0:02:38.1]} 12... Qc7 {[%clk 0:02:27.4]} 13. e5 {[%clk 0:02:33]} 13... Qxe5
{[%clk 0:02:25.2]} 14. Bf4 {[%clk 0:02:28.2]} 14... Qe6 {[%clk 0:02:19.5]} 15.
Nc3 {[%clk 0:02:27.9]} 15... O-O-O {[%clk 0:02:16.8]} 16. Rfe1 {[%clk
0:02:25.5]} 16... Qg4 {[%clk 0:02:12.1]} 17. Qf2 {[%clk 0:02:21.3]} 17... b6
{[%clk 0:02:07.8]} 18. a4 {[%clk 0:02:15.8]} 18... Bc5 {[%clk 0:02:06.9]} 19.
Qf1 {[%clk 0:02:13.7]} 19... h5 {[%clk 0:01:55.6]} 20. Qa6+ {[%clk 0:02:12.9]}
20... Kd7 {[%clk 0:01:51.7]} 21. Qb7# {[%clk 0:02:12.9]} 1-0

[Event "Early-Titled-Tuesday-Blitz-July-09-2024"]
[Site "Chess.com"]
[Date "2024.07.09"]
[Round "9"]
[White "GAO"]
[Black "simonachess"]
[Result "1-0"]
[WhiteElo "2444"]
[BlackElo "2315"]
[TimeControl "180+1"]
[EndTime "9:41:20 PDT"]
[Termination "GAO won by resignation"]

1. e4 {[%clk 0:03:00.9]} 1... c5 {[%clk 0:02:57.9]} 2. Nf3 {[%clk 0:03:00.3]}
2... Nc6 {[%clk 0:02:56.4]} 3. Bb5 {[%clk 0:02:59.8]} 3... g6 {[%clk 0:02:56.1]}
4. O-O {[%clk 0:02:59.6]} 4... Bg7 {[%clk 0:02:54.1]} 5. Re1 {[%clk 0:02:59.9]}
5... e5 {[%clk 0:02:53.3]} 6. c3 {[%clk 0:02:57.8]} 6... Nge7 {[%clk 0:02:52.2]}
7. d4 {[%clk 0:02:58.2]} 7... cxd4 {[%clk 0:02:50.4]} 8. cxd4 {[%clk 0:02:59.1]}
8... exd4 {[%clk 0:02:50.2]} 9. Bf4 {[%clk 0:02:58.5]} 9... O-O {[%clk
0:02:49.3]} 10. Bd6 {[%clk 0:02:58.6]} 10... Re8 {[%clk 0:02:49.1]} 11. Nbd2
{[%clk 0:02:56.9]} 11... a6 {[%clk 0:02:48.4]} 12. Bc4 {[%clk 0:02:56.2]} 12...
b5 {[%clk 0:02:48.5]} 13. Bxf7+ {[%clk 0:02:52.7]} 13... Kh8 {[%clk 0:02:43.6]}
14. Bxe8 {[%clk 0:02:50.6]} 14... Qxe8 {[%clk 0:02:44.5]} 15. Nb3 {[%clk
0:02:47.2]} 15... Bb7 {[%clk 0:02:40.8]} 16. Nbxd4 {[%clk 0:02:37.6]} 16... Nxd4
{[%clk 0:02:29.9]} 17. Nxd4 {[%clk 0:02:37.3]} 17... Qf7 {[%clk 0:02:29]} 18.
Bxe7 {[%clk 0:02:36.2]} 18... Qxe7 {[%clk 0:02:29.1]} 19. Qd3 {[%clk 0:02:32.7]}
19... Rf8 {[%clk 0:02:26.9]} 20. Rad1 {[%clk 0:02:30.9]} 20... Qf7 {[%clk
0:02:18.7]} 21. Re2 {[%clk 0:02:29.1]} 21... Qxa2 {[%clk 0:02:15.3]} 22. Nb3
{[%clk 0:02:21.3]} 22... Qa4 {[%clk 0:01:48.7]} 23. Nc5 {[%clk 0:02:17.1]} 1-0

[Event "Early-Titled-Tuesday-Blitz-July-09-2024"]
[Site "Chess.com"]
[Date "2024.07.09"]
[Round "9"]
[White "Timerkhanov"]
[Black "kuzol"]
[Result "1-0"]
[WhiteElo "2671"]
[BlackElo "2511"]
[TimeControl "180+1"]
[EndTime "9:42:05 PDT"]
[Termination "Timerkhanov won by resignation"]

1. d4 {[%clk 0:03:00.9]} 1... Nf6 {[%clk 0:02:58]} 2. Bg5 {[%clk 0:03:01.3]}
2... Ne4 {[%clk 0:02:57.4]} 3. h4 {[%clk 0:03:00.7]} 3... c5 {[%clk 0:02:55.8]}
4. d5 {[%clk 0:02:59.9]} 4... Qb6 {[%clk 0:02:44.3]} 5. Nd2 {[%clk 0:03:00.1]}
5... Nxg5 {[%clk 0:02:36.4]} 6. hxg5 {[%clk 0:03:01]} 6... Qxb2 {[%clk
0:02:36.3]} 7. g6 {[%clk 0:03:01.5]} 7... fxg6 {[%clk 0:02:31.3]} 8. e3 {[%clk
0:03:02]} 8... d6 {[%clk 0:02:11.6]} 9. Bd3 {[%clk 0:02:57.8]} 9... Bf5 {[%clk
0:02:01.3]} 10. Rb1 {[%clk 0:02:57.6]} 10... Qxa2 {[%clk 0:01:56.4]} 11. e4
{[%clk 0:02:54]} 11... Bc8 {[%clk 0:01:46.8]} 12. Nc4 {[%clk 0:02:53.9]} 12...
Nd7 {[%clk 0:01:37.1]} 13. Ra1 {[%clk 0:02:52.4]} 13... Qxa1 {[%clk 0:01:27]}
14. Qxa1 {[%clk 0:02:51.5]} 14... b5 {[%clk 0:01:27.2]} 15. Na5 {[%clk
0:02:51.5]} 15... c4 {[%clk 0:01:27.1]} 16. Be2 {[%clk 0:02:51.4]} 16... Nc5
{[%clk 0:01:25.8]} 17. Bf3 {[%clk 0:02:46.2]} 17... Bd7 {[%clk 0:01:18.7]} 18.
Ne2 {[%clk 0:02:45.4]} 18... a6 {[%clk 0:01:06.8]} 19. Nf4 {[%clk 0:02:40.4]}
19... Kf7 {[%clk 0:01:01.3]} 20. e5 {[%clk 0:02:38]} 20... dxe5 {[%clk
0:01:00.8]} 21. Qxe5 {[%clk 0:02:36.3]} 21... Rc8 {[%clk 0:01:00.3]} 22. Nxg6
{[%clk 0:02:30.8]} 22... Kxg6 {[%clk 0:00:56.7]} 23. Bh5+ {[%clk 0:02:28.7]}
23... Kh6 {[%clk 0:00:55.8]} 24. Be8+ {[%clk 0:02:28.7]} 1-0

[Event "Early-Titled-Tuesday-Blitz-July-09-2024"]
[Site "Chess.com"]
[Date "2024.07.09"]
[Round "9"]
[White "JunjiCol"]
[Black "JueIes"]
[Result "1-0"]
[WhiteElo "2385"]
[BlackElo "2533"]
[TimeControl "180+1"]
[EndTime "9:42:09 PDT"]
[Termination "JunjiCol won by resignation"]

1. e4 {[%clk 0:03:00.9]} 1... c6 {[%clk 0:02:59.6]} 2. d4 {[%clk 0:03:00.1]}
2... d5 {[%clk 0:03:00.5]} 3. e5 {[%clk 0:03:00.4]} 3... Bf5 {[%clk 0:02:58.4]}
4. Nf3 {[%clk 0:03:00]} 4... e6 {[%clk 0:02:57.6]} 5. Be2 {[%clk 0:02:59.3]}
5... Nd7 {[%clk 0:02:57.9]} 6. Be3 {[%clk 0:02:58.1]} 6... Ne7 {[%clk
0:02:54.9]} 7. O-O {[%clk 0:02:57.5]} 7... h6 {[%clk 0:02:55.2]} 8. c4 {[%clk
0:02:57.4]} 8... dxc4 {[%clk 0:02:47.1]} 9. Bxc4 {[%clk 0:02:57.5]} 9... Nb6
{[%clk 0:02:47.2]} 10. Bb3 {[%clk 0:02:55.9]} 10... Ned5 {[%clk 0:02:46.5]} 11.
Nc3 {[%clk 0:02:55.1]} 11... Be7 {[%clk 0:02:43.9]} 12. Rc1 {[%clk 0:02:50.5]}
12... O-O {[%clk 0:02:40.8]} 13. Qd2 {[%clk 0:02:50.4]} 13... Nxe3 {[%clk
0:02:39.5]} 14. fxe3 {[%clk 0:02:50]} 14... Bg6 {[%clk 0:02:36]} 15. Ne2 {[%clk
0:02:41.8]} 15... a5 {[%clk 0:02:32]} 16. Nf4 {[%clk 0:02:41.5]} 16... Bf5
{[%clk 0:02:21.6]} 17. Nd3 {[%clk 0:02:35.7]} 17... a4 {[%clk 0:02:16.9]} 18.
Bd1 {[%clk 0:02:35.7]} 18... Be4 {[%clk 0:02:09]} 19. Nc5 {[%clk 0:02:34.6]}
19... Bxc5 {[%clk 0:02:01.7]} 20. Rxc5 {[%clk 0:02:35.5]} 20... Nd5 {[%clk
0:01:58]} 21. Bc2 {[%clk 0:02:32.2]} 21... Bxc2 {[%clk 0:01:56.8]} 22. Rxc2
{[%clk 0:02:33.1]} 22... Qb6 {[%clk 0:01:53.5]} 23. a3 {[%clk 0:02:29.7]} 23...
Ne7 {[%clk 0:01:46.5]} 24. Qd3 {[%clk 0:02:27]} 24... Rfd8 {[%clk 0:01:37.5]}
25. Rfc1 {[%clk 0:02:26.1]} 25... Rd7 {[%clk 0:01:36.1]} 26. Nd2 {[%clk
0:02:25.7]} 26... Nf5 {[%clk 0:01:35.1]} 27. Nc4 {[%clk 0:02:24.4]} 27... Qb5
{[%clk 0:01:31.6]} 28. Qc3 {[%clk 0:02:21.9]} 28... Qd5 {[%clk 0:01:26.8]} 29.
Nb6 {[%clk 0:02:20.6]} 1-0

[Event "Early-Titled-Tuesday-Blitz-July-09-2024"]
[Site "Chess.com"]
[Date "2024.07.09"]
[Round "9"]
[White "Vision_64"]
[Black "wannabe2700"]
[Result "0-1"]
[WhiteElo "2342"]
[BlackElo "2547"]
[TimeControl "180+1"]
[EndTime "9:42:25 PDT"]
[Termination "wannabe2700 won by resignation"]

1. e4 {[%clk 0:03:00.9]} 1... Nc6 {[%clk 0:02:43.3]} 2. Nc3 {[%clk 0:02:56.5]}
2... e5 {[%clk 0:02:38.5]} 3. Nf3 {[%clk 0:02:53.2]} 3... Bb4 {[%clk 0:02:36]}
4. Bc4 {[%clk 0:02:50.1]} 4... Nge7 {[%clk 0:02:35.3]} 5. O-O {[%clk 0:02:48.9]}
5... O-O {[%clk 0:02:35.3]} 6. Nd5 {[%clk 0:02:47.3]} 6... d6 {[%clk 0:02:33.8]}
7. c3 {[%clk 0:02:45.6]} 7... Ba5 {[%clk 0:02:30.1]} 8. d4 {[%clk 0:02:44.8]}
8... Ng6 {[%clk 0:02:26.5]} 9. Bg5 {[%clk 0:02:42.7]} 9... Nce7 {[%clk
0:02:24.3]} 10. b4 {[%clk 0:02:27.3]} 10... Bb6 {[%clk 0:02:23.7]} 11. Nxe7+
{[%clk 0:02:22.4]} 11... Nxe7 {[%clk 0:02:23.4]} 12. dxe5 {[%clk 0:02:22.5]}
12... h6 {[%clk 0:02:18.2]} 13. Bh4 {[%clk 0:02:15.7]} 13... Bg4 {[%clk
0:02:16.2]} 14. exd6 {[%clk 0:02:06.1]} 14... cxd6 {[%clk 0:02:17.1]} 15. h3
{[%clk 0:02:05.2]} 15... Bh5 {[%clk 0:02:17.3]} 16. g4 {[%clk 0:02:01.4]} 16...
Bg6 {[%clk 0:02:16.8]} 17. Nd4 {[%clk 0:01:59.8]} 17... Rc8 {[%clk 0:02:16.2]}
18. Qe2 {[%clk 0:01:56.9]} 18... Qc7 {[%clk 0:01:49.5]} 19. Bd3 {[%clk
0:01:48.4]} 19... Rfe8 {[%clk 0:01:45]} 20. Bb5 {[%clk 0:01:38]} 20... Nc6
{[%clk 0:01:40.4]} 21. Nxc6 {[%clk 0:01:34.4]} 21... bxc6 {[%clk 0:01:41.2]} 22.
Bd3 {[%clk 0:01:34.5]} 22... d5 {[%clk 0:01:38.6]} 23. Bg3 {[%clk 0:01:29.9]}
23... Qxg3+ {[%clk 0:01:37.8]} 0-1

[Event "Early-Titled-Tuesday-Blitz-July-09-2024"]
[Site "Chess.com"]
[Date "2024.07.09"]
[Round "9"]
[White "Millerkallpa"]
[Black "adreyd"]
[Result "0-1"]
[WhiteElo "2246"]
[BlackElo "2406"]
[TimeControl "180+1"]
[EndTime "9:42:43 PDT"]
[Termination "adreyd won by checkmate"]

1. e4 {[%clk 0:03:00.9]} 1... c5 {[%clk 0:02:59.9]} 2. Nf3 {[%clk 0:03:00.5]}
2... e6 {[%clk 0:03:00]} 3. c3 {[%clk 0:03:00.8]} 3... Nf6 {[%clk 0:02:57]} 4.
e5 {[%clk 0:02:58.2]} 4... Nd5 {[%clk 0:02:57.1]} 5. d4 {[%clk 0:02:56.2]} 5...
cxd4 {[%clk 0:02:52.1]} 6. cxd4 {[%clk 0:02:55.6]} 6... d6 {[%clk 0:02:52.4]} 7.
Nc3 {[%clk 0:02:52.3]} 7... dxe5 {[%clk 0:02:34.2]} 8. Nxe5 {[%clk 0:02:48.7]}
8... Nxc3 {[%clk 0:02:16.7]} 9. bxc3 {[%clk 0:02:47.2]} 9... Nd7 {[%clk
0:02:17.3]} 10. Nxd7 {[%clk 0:02:45.4]} 10... Bxd7 {[%clk 0:02:17]} 11. Bd3
{[%clk 0:02:45.1]} 11... Bd6 {[%clk 0:02:10.6]} 12. O-O {[%clk 0:02:43.1]} 12...
O-O {[%clk 0:02:04.5]} 13. Qh5 {[%clk 0:02:40.7]} 13... f5 {[%clk 0:02:03.9]}
14. Re1 {[%clk 0:02:37.7]} 14... Qc7 {[%clk 0:01:59.3]} 15. Bd2 {[%clk
0:02:31.8]} 15... Rf6 {[%clk 0:01:58.5]} 16. h3 {[%clk 0:02:30.1]} 16... Rg6
{[%clk 0:01:57.7]} 17. Rab1 {[%clk 0:02:19.2]} 17... Bc6 {[%clk 0:01:54.8]} 18.
g4 {[%clk 0:02:14.1]} 18... Bf4 {[%clk 0:01:43.3]} 19. Be3 {[%clk 0:02:00.3]}
19... Rh6 {[%clk 0:01:38.5]} 20. Qxh6 {[%clk 0:01:49.3]} 20... gxh6 {[%clk
0:01:33.4]} 21. Bxf4 {[%clk 0:01:48.9]} 21... Qxf4 {[%clk 0:01:34.3]} 22. Rxe6
{[%clk 0:01:49.2]} 22... Qf3 {[%clk 0:01:33.4]} 23. Bc4 {[%clk 0:01:45.4]} 23...
Qg2# {[%clk 0:00:54.3]} 0-1

[Event "Early-Titled-Tuesday-Blitz-July-09-2024"]
[Site "Chess.com"]
[Date "2024.07.09"]
[Round "9"]
[White "MrMatesM"]
[Black "ShahMatKanal"]
[Result "0-1"]
[WhiteElo "2685"]
[BlackElo "2573"]
[TimeControl "180+1"]
[EndTime "9:42:44 PDT"]
[Termination "ShahMatKanal won by resignation"]

1. Nf3 {[%clk 0:03:00.9]} 1... Nf6 {[%clk 0:02:58.6]} 2. g3 {[%clk 0:03:01.8]}
2... g6 {[%clk 0:02:57.8]} 3. Bg2 {[%clk 0:03:02.7]} 3... Bg7 {[%clk 0:02:58.4]}
4. O-O {[%clk 0:03:03.6]} 4... O-O {[%clk 0:02:58.8]} 5. d3 {[%clk 0:03:04.5]}
5... d6 {[%clk 0:02:58.6]} 6. e4 {[%clk 0:03:04.2]} 6... c5 {[%clk 0:02:58.1]}
7. Re1 {[%clk 0:03:04.4]} 7... Nc6 {[%clk 0:02:58]} 8. c3 {[%clk 0:03:04.6]}
8... Rb8 {[%clk 0:02:56.3]} 9. h3 {[%clk 0:03:03.1]} 9... b5 {[%clk 0:02:55.8]}
10. d4 {[%clk 0:03:03.7]} 10... cxd4 {[%clk 0:02:42.9]} 11. cxd4 {[%clk
0:03:03.9]} 11... Nd7 {[%clk 0:02:36]} 12. Be3 {[%clk 0:03:02.1]} 12... Nb6
{[%clk 0:02:26.9]} 13. Nbd2 {[%clk 0:03:00.7]} 13... d5 {[%clk 0:02:17.6]} 14.
b3 {[%clk 0:02:56.4]} 14... dxe4 {[%clk 0:02:12.2]} 15. Nxe4 {[%clk 0:02:57.3]}
15... Nd5 {[%clk 0:02:12]} 16. Rc1 {[%clk 0:02:55.2]} 16... Rb6 {[%clk
0:02:04.2]} 17. Nc5 {[%clk 0:02:43.9]} 17... Nxe3 {[%clk 0:01:56.4]} 18. fxe3
{[%clk 0:02:44.8]} 18... Nb4 {[%clk 0:01:45.5]} 19. Qd2 {[%clk 0:02:41.6]} 19...
Nd5 {[%clk 0:01:38.5]} 20. e4 {[%clk 0:02:38.7]} 20... Nc7 {[%clk 0:01:37.9]}
21. e5 {[%clk 0:02:21.6]} 21... Ne6 {[%clk 0:01:27.2]} 22. Qf2 {[%clk
0:02:16.7]} 22... b4 {[%clk 0:01:17.9]} 23. Red1 {[%clk 0:01:58.4]} 23... Bh6
{[%clk 0:01:16.4]} 24. Rc4 {[%clk 0:01:48.4]} 24... Nc7 {[%clk 0:01:15.1]} 25.
Nd2 {[%clk 0:01:41]} 25... Nd5 {[%clk 0:01:13.9]} 26. Nde4 {[%clk 0:01:39]}
26... Be3 {[%clk 0:01:11.4]} 0-1

[Event "Early-Titled-Tuesday-Blitz-July-09-2024"]
[Site "Chess.com"]
[Date "2024.07.09"]
[Round "9"]
[White "Kyrko_Gamba"]
[Black "Boudicca64"]
[Result "1-0"]
[WhiteElo "2524"]
[BlackElo "1936"]
[TimeControl "180+1"]
[EndTime "9:42:44 PDT"]
[Termination "Kyrko_Gamba won by checkmate"]

1. Nf3 {[%clk 0:03:00.9]} 1... Nf6 {[%clk 0:02:57.7]} 2. g3 {[%clk 0:03:00.1]}
2... g6 {[%clk 0:02:56.9]} 3. Bg2 {[%clk 0:03:01]} 3... Bg7 {[%clk 0:02:55.5]}
4. O-O {[%clk 0:03:01.2]} 4... O-O {[%clk 0:02:55.1]} 5. c4 {[%clk 0:02:54.3]}
5... d6 {[%clk 0:02:54.5]} 6. Nc3 {[%clk 0:02:53.9]} 6... c5 {[%clk 0:02:53.5]}
7. b3 {[%clk 0:02:52.9]} 7... Nc6 {[%clk 0:02:52.7]} 8. Bb2 {[%clk 0:02:52.8]}
8... a6 {[%clk 0:02:51.8]} 9. e3 {[%clk 0:02:51.9]} 9... Rb8 {[%clk 0:02:51.4]}
10. Nd5 {[%clk 0:02:49]} 10... Nxd5 {[%clk 0:02:37.1]} 11. Bxg7 {[%clk
0:02:48.9]} 11... Nxe3 {[%clk 0:02:35.5]} 12. fxe3 {[%clk 0:02:49.3]} 12... Kxg7
{[%clk 0:02:34.1]} 13. d4 {[%clk 0:02:50.2]} 13... Bd7 {[%clk 0:02:20.1]} 14.
Kh1 {[%clk 0:02:48.2]} 14... b5 {[%clk 0:02:11.7]} 15. dxc5 {[%clk 0:02:46.5]}
15... dxc5 {[%clk 0:02:10.2]} 16. Qd5 {[%clk 0:02:47]} 16... bxc4 {[%clk
0:02:05.9]} 17. Qxc4 {[%clk 0:02:47]} 17... Qb6 {[%clk 0:02:01.8]} 18. Ng5
{[%clk 0:02:42.9]} 18... Na5 {[%clk 0:01:56.9]} 19. Rxf7+ {[%clk 0:02:41.4]}
19... Rxf7 {[%clk 0:01:36.9]} 20. Qxf7+ {[%clk 0:02:42.3]} 20... Kh6 {[%clk
0:01:36.7]} 21. Qxh7+ {[%clk 0:02:20.2]} 21... Kxg5 {[%clk 0:01:32]} 22. Qh4+
{[%clk 0:02:07.4]} 22... Kf5 {[%clk 0:01:30.8]} 23. Bh3+ {[%clk 0:02:07]} 23...
Ke5 {[%clk 0:01:27.5]} 24. Qf4+ {[%clk 0:02:01.9]} 24... Kd5 {[%clk 0:01:21.8]}
25. Rd1+ {[%clk 0:01:58.9]} 25... Kc6 {[%clk 0:01:09.2]} 26. Bg2+ {[%clk
0:01:56.5]} 26... Kb5 {[%clk 0:00:52.5]} 27. a4# {[%clk 0:01:55.9]} 1-0

[Event "Early-Titled-Tuesday-Blitz-July-09-2024"]
[Site "Chess.com"]
[Date "2024.07.09"]
[Round "9"]
[White "lu1860"]
[Black "Defenstrator"]
[Result "1-0"]
[WhiteElo "2097"]
[BlackElo "2394"]
[TimeControl "180+1"]
[EndTime "9:42:45 PDT"]
[Termination "lu1860 won by resignation"]

1. d4 {[%clk 0:02:58.5]} 1... Na6 {[%clk 0:03:00.4]} 2. c4 {[%clk 0:02:57.3]}
2... c5 {[%clk 0:03:01.3]} 3. d5 {[%clk 0:02:56.7]} 3... e6 {[%clk 0:03:02]} 4.
Nc3 {[%clk 0:02:55.8]} 4... Nf6 {[%clk 0:03:02.2]} 5. Nf3 {[%clk 0:02:54.1]}
5... exd5 {[%clk 0:03:02.9]} 6. cxd5 {[%clk 0:02:53.9]} 6... d6 {[%clk
0:03:03.7]} 7. Bf4 {[%clk 0:02:53.3]} 7... Be7 {[%clk 0:03:04.4]} 8. h3 {[%clk
0:02:52.8]} 8... O-O {[%clk 0:03:05]} 9. e3 {[%clk 0:02:52]} 9... Nc7 {[%clk
0:03:05.6]} 10. a4 {[%clk 0:02:51.4]} 10... b6 {[%clk 0:03:05.7]} 11. Be2 {[%clk
0:02:47.9]} 11... a6 {[%clk 0:03:06.2]} 12. O-O {[%clk 0:02:45.7]} 12... Rb8
{[%clk 0:03:07]} 13. e4 {[%clk 0:02:41.1]} 13... b5 {[%clk 0:03:07.4]} 14. e5
{[%clk 0:02:29.1]} 14... Nfe8 {[%clk 0:03:06.8]} 15. exd6 {[%clk 0:02:18.3]}
15... Bxd6 {[%clk 0:03:05.8]} 16. Bxd6 {[%clk 0:02:11.1]} 16... Nxd6 {[%clk
0:03:06.7]} 17. Ne5 {[%clk 0:02:09.8]} 17... Bb7 {[%clk 0:03:06.7]} 18. axb5
{[%clk 0:02:05.3]} 18... axb5 {[%clk 0:03:07.6]} 19. Bf3 {[%clk 0:02:03.5]}
19... b4 {[%clk 0:03:07.4]} 20. Na4 {[%clk 0:01:58.5]} 20... Nf5 {[%clk
0:03:08]} 21. Nxc5 {[%clk 0:01:52.8]} 21... Bxd5 {[%clk 0:03:08.4]} 22. Bxd5
{[%clk 0:01:51.3]} 22... Qxd5 {[%clk 0:03:08.9]} 23. Qxd5 {[%clk 0:01:48.5]}
23... Nxd5 {[%clk 0:03:09.8]} 24. Ncd7 {[%clk 0:01:44.1]} 24... f6 {[%clk
0:02:58.6]} 25. Nxf8 {[%clk 0:01:37.9]} 25... Rxf8 {[%clk 0:02:54]} 26. Nc6
{[%clk 0:01:33.2]} 26... Rc8 {[%clk 0:02:52]} 27. Rac1 {[%clk 0:01:31]} 27...
Rc7 {[%clk 0:02:38]} 28. Rfd1 {[%clk 0:01:28.6]} 28... Rd7 {[%clk 0:02:27.6]}
29. g4 {[%clk 0:01:22.2]} 29... Nh4 {[%clk 0:02:25.3]} 30. Rxd5 {[%clk
0:01:20.1]} 30... Nf3+ {[%clk 0:02:04.5]} 31. Kh1 {[%clk 0:01:19]} 31... Rc7
{[%clk 0:02:01]} 32. Rd8+ {[%clk 0:01:14.1]} 32... Kf7 {[%clk 0:02:01]} 33. Ne5+
{[%clk 0:01:06.6]} 1-0

[Event "Early-Titled-Tuesday-Blitz-July-09-2024"]
[Site "Chess.com"]
[Date "2024.07.09"]
[Round "9"]
[White "Andrey-Ivanov2011"]
[Black "Payyappat"]
[Result "0-1"]
[WhiteElo "2178"]
[BlackElo "2414"]
[TimeControl "180+1"]
[EndTime "9:42:48 PDT"]
[Termination "Payyappat won by resignation"]

1. d4 {[%clk 0:03:00.9]} 1... Nf6 {[%clk 0:02:59.7]} 2. c4 {[%clk 0:02:59.9]}
2... c5 {[%clk 0:02:58.9]} 3. d5 {[%clk 0:02:59.6]} 3... e6 {[%clk 0:02:58.4]}
4. Nc3 {[%clk 0:02:59]} 4... exd5 {[%clk 0:02:59.3]} 5. cxd5 {[%clk 0:02:59.8]}
5... d6 {[%clk 0:02:59.6]} 6. e4 {[%clk 0:03:00.3]} 6... g6 {[%clk 0:02:59.8]}
7. f4 {[%clk 0:02:59.9]} 7... Bg7 {[%clk 0:02:59.7]} 8. Nf3 {[%clk 0:03:00.4]}
8... O-O {[%clk 0:02:59.6]} 9. Bd3 {[%clk 0:03:01]} 9... b5 {[%clk 0:02:52.2]}
10. O-O {[%clk 0:02:57.6]} 10... c4 {[%clk 0:02:50.1]} 11. Bc2 {[%clk
0:02:55.7]} 11... b4 {[%clk 0:02:49.5]} 12. Ne2 {[%clk 0:02:54.7]} 12... Re8
{[%clk 0:02:46]} 13. Ng3 {[%clk 0:02:53.7]} 13... Bg4 {[%clk 0:02:42.8]} 14. h3
{[%clk 0:02:51.8]} 14... Bxf3 {[%clk 0:02:41.9]} 15. Qxf3 {[%clk 0:02:52.7]}
15... Nbd7 {[%clk 0:02:42.3]} 16. Rb1 {[%clk 0:02:44.9]} 16... Nc5 {[%clk
0:02:40.4]} 17. Be3 {[%clk 0:02:44]} 17... b3 {[%clk 0:01:49.2]} 18. axb3 {[%clk
0:02:40.4]} 18... cxb3 {[%clk 0:01:49]} 19. Bd1 {[%clk 0:02:39.7]} 19... Nfxe4
{[%clk 0:01:41.6]} 20. Nxe4 {[%clk 0:02:34]} 20... Nxe4 {[%clk 0:01:37.9]} 21.
Bxb3 {[%clk 0:02:33.2]} 21... Rb8 {[%clk 0:01:36.7]} 22. Bc2 {[%clk 0:02:28.6]}
22... f5 {[%clk 0:01:36.3]} 23. b3 {[%clk 0:02:23.7]} 23... Rc8 {[%clk
0:01:33.3]} 24. Bxe4 {[%clk 0:02:19.7]} 24... Rxe4 {[%clk 0:01:32.5]} 25. Qf2
{[%clk 0:02:16]} 25... Qe7 {[%clk 0:01:25]} 26. Rfe1 {[%clk 0:01:50.7]} 26...
Re8 {[%clk 0:01:23.4]} 27. Bd2 {[%clk 0:01:31.2]} 27... Bd4 {[%clk 0:01:22.4]}
28. Rxe4 {[%clk 0:01:31.3]} 28... Bxf2+ {[%clk 0:01:22.2]} 29. Kxf2 {[%clk
0:01:31.7]} 29... Qxe4 {[%clk 0:01:22.7]} 30. Re1 {[%clk 0:01:32]} 30... Qd4+
{[%clk 0:01:22.6]} 0-1

[Event "Early-Titled-Tuesday-Blitz-July-09-2024"]
[Site "Chess.com"]
[Date "2024.07.09"]
[Round "9"]
[White "Kombinator01"]
[Black "manitodeplomo"]
[Result "0-1"]
[WhiteElo "2442"]
[BlackElo "2600"]
[TimeControl "180+1"]
[EndTime "9:43:00 PDT"]
[Termination "manitodeplomo won by resignation"]

1. e4 {[%clk 0:02:32.9]} 1... c5 {[%clk 0:02:59.3]} 2. Nc3 {[%clk 0:02:28.7]}
2... Nc6 {[%clk 0:02:58.8]} 3. g3 {[%clk 0:02:27.9]} 3... g6 {[%clk 0:02:58.4]}
4. Bg2 {[%clk 0:02:27.9]} 4... Bg7 {[%clk 0:02:59]} 5. d3 {[%clk 0:02:28.1]}
5... Rb8 {[%clk 0:02:58.5]} 6. a4 {[%clk 0:02:16.5]} 6... a6 {[%clk 0:02:57.9]}
7. Nf3 {[%clk 0:02:16]} 7... b5 {[%clk 0:02:57.1]} 8. axb5 {[%clk 0:02:16.2]}
8... axb5 {[%clk 0:02:58]} 9. O-O {[%clk 0:02:16.3]} 9... b4 {[%clk 0:02:58.4]}
10. Nd5 {[%clk 0:02:11.5]} 10... d6 {[%clk 0:02:53.6]} 11. h3 {[%clk 0:02:05.9]}
11... e6 {[%clk 0:02:51.8]} 12. Ne3 {[%clk 0:01:54.9]} 12... Nge7 {[%clk
0:02:51.9]} 13. Kh2 {[%clk 0:01:51.9]} 13... O-O {[%clk 0:02:51.1]} 14. Ra2
{[%clk 0:01:49]} 14... b3 {[%clk 0:02:49.1]} 15. Ra3 {[%clk 0:01:31]} 15... bxc2
{[%clk 0:02:48.2]} 16. Qxc2 {[%clk 0:01:31.3]} 16... Nb4 {[%clk 0:02:48.5]} 17.
Qb1 {[%clk 0:01:22.2]} 17... Nec6 {[%clk 0:02:29.9]} 18. Bd2 {[%clk 0:01:20]}
18... Ba6 {[%clk 0:02:20.8]} 19. Bc3 {[%clk 0:01:14.8]} 19... Bxd3 {[%clk
0:02:13.9]} 20. Qa1 {[%clk 0:01:13.7]} 20... Bxf1 {[%clk 0:01:58.2]} 21. Bxg7
{[%clk 0:01:12.6]} 21... Kxg7 {[%clk 0:01:53.8]} 22. Bxf1 {[%clk 0:01:11.6]}
22... Nc2 {[%clk 0:01:50]} 23. Nxc2 {[%clk 0:01:11.4]} 23... Qf6 {[%clk
0:01:47.1]} 24. Ra2 {[%clk 0:00:47.7]} 24... Qxf3 {[%clk 0:01:41.5]} 0-1